[Event "GER-ch Rapid Women 2017"]
[Site "Erfurt"]
[Date "2017.07.29"]
[Round "3"]
[White "Birkholz, Olga"]
[Black "Yueksel, Anja"]
[Result "1-0"]
[ECO "A48"]
[WhiteElo "2076"]
[BlackElo "1472"]
[Annotator "NA"]
[PlyCount "63"]
[EventDate "2017.??.??"]
[EventType "swiss"]
[EventCountry "GER"]
[SourceTitle "playchess.com"]
[Source "ChessBase"]
[SourceQuality "1"]
[TimeControl "1200"]

1. d4 {[%emt 0:00:02]} Nf6 {[%emt 0:00:01]} 2. Nf3 {[%emt 0:00:02]} g6 {[%emt 0:00:02]} 3. Nc3 {[%emt 0:00:05]} d5 {[%emt 0:00:03]} 4. Bf4 {[%emt 0:00:05]} c6 {[%emt 0:00:07]} 5. h3 {[%emt 0:00:02]} Bg7 {[%emt 0:00:01]} 6. Qd2 {[%emt 0:00:31]} O-O {[%emt 0:00:04]} 7. O-O-O {[%emt 0:00:26]} Nbd7 {[%emt 0:01:09]} 8. g4 {[%emt 0:00:19]} Ne4 {[%emt 0:00:10]} 9. Nxe4 {[%emt 0:00:11]} dxe4 {[%emt 0:00:02]} 10. Ng5 f5 {[%emt 0:00:47]} 11. Ne6 {[%emt 0:00:10]} Qb6 {[%emt 0:00:37]} 12. Nxf8 {[%emt 0:00:12]} Kxf8 {[%emt 0:00:02]} 13. gxf5 {[%emt 0:00:31]} gxf5 {[%emt 0:00:07]} 14. Rg1 {[%emt 0:00:11]} Bf6 {[%emt 0:00:15]} 15. Bh6+ {[%emt 0:00:38]} Kf7 {[%emt 0:00:06]} 16. e3 {[%emt 0:00:10]} c5 {[%emt 0:00:43]} 17. Bc4+ {[%emt 0:00:23]} e6 {[%emt 0:00:12]} 18. c3 {[%emt 0:00:27]} a6 {[%emt 0:00:22]} 19. Qe2 {[%emt 0:00:30]} Qc7 {[%emt 0:00:20]} 20. Qh5+ {[%emt 0:00:20]} Ke7 {[%emt 0:00:09]} 21. Bg5 {[%emt 0:00:34]} b5 {[%emt 0:00:26]} 22. Qxh7+ {[%emt 0:00:56]} Kd6 {[%emt 0:00:02]} 23. dxc5+ {[%emt 0:00:39]} Kxc5 {[%emt 0:00:03]} 24. Bxe6 {[%emt 0:00:23]} Ra7 {[%emt 0:01:01]} 25. Bxd7 {[%emt 0:00:29]} Bxg5 {[%emt 0:01:01]} 26. Rxg5 {[%emt 0:01:35]} Qh2 {[%emt 0:01:07]} 27. Qxf5+ {[%emt 0:00:10]} Kb6 {[%emt 0:00:44]} 28. Bxc8 {[%emt 0:00:10]} Rc7 {[%emt 0:00:13]} 29. Rg6+ {[%emt 0:00:18]} Ka7 {[%emt 0:00:16]} 30. Rxa6+ {[%emt 0:00:16]} Kb8 {[%emt 0:00:08]} 31. Qxb5+ {[%emt 0:00:13]} Rb7 {[%emt 0:00:05]} 32. Qxb7# {[%emt 0:00:07]} 1-0

[Event "GER-ch Rapid Women 2017"]
[Site "Erfurt"]
[Date "2017.07.29"]
[Round "3"]
[White "Ries, Jutta"]
[Black "Perez Celis, Alba"]
[Result "1-0"]
[ECO "A02"]
[WhiteElo "2051"]
[BlackElo "1790"]
[Annotator "NA"]
[PlyCount "74"]
[EventDate "2017.??.??"]
[EventType "swiss"]
[EventCountry "GER"]
[SourceTitle "playchess.com"]
[Source "ChessBase"]
[SourceQuality "1"]
[TimeControl "1200"]

1. f4 {[%emt 0:00:02]} f5 {[%emt 0:00:07]} 2. Nf3 {[%emt 0:00:02]} Nf6 {[%emt 0:00:01]} 3. b3 {[%emt 0:00:02]} g6 {[%emt 0:00:09]} 4. Bb2 {[%emt 0:00:01]} Bg7 {[%emt 0:00:05]} 5. e3 {[%emt 0:00:03]} d5 {[%emt 0:00:40]} 6. Nc3 {[%emt 0:00:23]} O-O {[%emt 0:00:32]} 7. Be2 {[%emt 0:00:19]} c5 {[%emt 0:00:05]} 8. Ne5 {[%emt 0:01:41]} e6 {[%emt 0:01:03]} 9. Bf3 {[%emt 0:00:21]} Nc6 {[%emt 0:01:21]} 10. Nxc6 {[%emt 0:00:10]} bxc6 {[%emt 0:00:02]} 11. O-O {[%emt 0:00:33]} Ba6 {[%emt 0:00:17]} 12. Be2 {[%emt 0:00:11]} Bxe2 {[%emt 0:01:42]} 13. Qxe2 {[%emt 0:00:02]} Ne4 {[%emt 0:00:10]} 14. Na4 {[%emt 0:01:13]} Bxb2 {[%emt 0:01:16]} 15. Nxb2 {[%emt 0:00:02]} Qa5 {[%emt 0:01:43]} 16. d3 {[%emt 0:04:34]} Nd6 {[%emt 0:02:12]} 17. Qe1 {[%emt 0:01:16]} Qb4 {[%emt 0:00:52]} 18. a3 {[%emt 0:00:29]} Qb5 {[%emt 0:01:06]} 19. Qc3 {[%emt 0:02:27]} Rab8 {[%emt 0:00:53]} 20. Qe5 {[%emt 0:00:22]} Nf7 {[%emt 0:00:18]} 21. Qf6 {[%emt 0:01:28]} c4 {[%emt 0:01:17]} 22. dxc4 {[%emt 0:00:16]} Qb6 {[%emt 0:00:47]} 23. Rfe1 {[%emt 0:00:12]} Rfe8 {[%emt 0:00:29]} 24. Na4 {[%emt 0:00:08]} Qa5 {[%emt 0:00:15]} 25. cxd5 {[%emt 0:00:21]} cxd5 {[%emt 0:00:09]} 26. Qd4 {[%emt 0:00:19]} Nd6 {[%emt 0:00:05]} 27. Nb2 {[%emt 0:00:33]} Ne4 {[%emt 0:00:02]} 28. b4 {[%emt 0:00:09]} Qc7 {[%emt 0:00:03]} 29. Qd3 {[%emt 0:00:07]} Rec8 {[%emt 0:00:02]} 30. Rac1 {[%emt 0:00:05]} Nc3 {[%emt 0:00:05]} 31. Nd1 {[%emt 0:00:11]} Ne4 {[%emt 0:00:09]} 32. Nf2 {[%emt 0:00:06]} Nc3 {[%emt 0:00:03]} 33. Nh3 {[%emt 0:00:08]} a5 {[%emt 0:00:04]} 34. Ng5 {[%emt 0:00:04]} Qd6 {[%emt 0:00:11]} 35. bxa5 {[%emt 0:00:03]} Rc6 {[%emt 0:00:07]} 36. Qd4 {[%emt 0:00:06]} Qxa3 {[%emt 0:00:11]} 37. Qa7 {[%emt 0:00:01]} Qf8 1-0

[Event "GER-ch Rapid Women 2017"]
[Site "Erfurt"]
[Date "2017.07.29"]
[Round "3"]
[White "Zahn, Alina"]
[Black "Mader, Lena"]
[Result "1-0"]
[ECO "B46"]
[WhiteElo "2025"]
[BlackElo "1880"]
[Annotator "NA"]
[PlyCount "93"]
[EventDate "2017.??.??"]
[EventType "swiss"]
[EventCountry "GER"]
[SourceTitle "playchess.com"]
[Source "ChessBase"]
[SourceQuality "1"]
[TimeControl "1200"]

1. e4 {[%emt 0:00:02]} c5 {[%emt 0:00:01]} 2. Nf3 {[%emt 0:00:01]} e6 {[%emt 0:00:01]} 3. d4 {[%emt 0:00:01]} cxd4 {[%emt 0:00:01]} 4. Nxd4 {[%emt 0:00:01]} Nc6 {[%emt 0:00:01]} 5. Nc3 {[%emt 0:00:35]} a6 {[%emt 0:00:01]} 6. Nb3 {[%emt 0:00:50]} Qc7 {[%emt 0:00:10]} 7. Be2 {[%emt 0:00:07]} Nf6 {[%emt 0:00:10]} 8. O-O {[%emt 0:00:08]} Be7 {[%emt 0:00:07]} 9. Be3 {[%emt 0:00:03]} O-O {[%emt 0:00:17]} 10. Qd2 {[%emt 0:00:01]} b5 {[%emt 0:00:21]} 11. a3 {[%emt 0:00:14]} Bb7 {[%emt 0:00:27]} 12. Rad1 {[%emt 0:00:22]} d6 {[%emt 0:00:54]} 13. Bf4 {[%emt 0:01:02]} Ne5 {[%emt 0:01:21]} 14. f3 {[%emt 0:00:39]} Rfd8 {[%emt 0:00:21]} 15. Qe1 {[%emt 0:00:57]} Ng6 {[%emt 0:00:35]} 16. Be3 {[%emt 0:00:14]} d5 {[%emt 0:01:36]} 17. Qf2 {[%emt 0:00:28]} Bd6 {[%emt 0:00:53]} 18. f4 {[%emt 0:00:53]} dxe4 {[%emt 0:02:01]} 19. Bb6 {[%emt 0:01:34]} Qc6 {[%emt 0:00:29]} 20. Bxd8 {[%emt 0:01:17]} Rxd8 {[%emt 0:00:38]} 21. Nd4 {[%emt 0:00:08]} Qb6 {[%emt 0:01:20]} 22. Nb3 {[%emt 0:02:07]} e3 {[%emt 0:02:01]} 23. Qg3 {[%emt 0:03:49]} Ne4 {[%emt 0:00:10]} 24. Nxe4 {[%emt 0:00:36]} Bxe4 {[%emt 0:00:01]} 25. Nd4 {[%emt 0:00:16]} Bc5 {[%emt 0:01:45]} 26. c3 {[%emt 0:00:14]} Bxd4 {[%emt 0:01:19]} 27. cxd4 {[%emt 0:00:01]} Bc2 {[%emt 0:00:31]} 28. Rc1 {[%emt 0:00:15]} Bf5 {[%emt 0:00:17]} 29. Qxe3 {[%emt 0:00:12]} h6 {[%emt 0:00:04]} 30. Rcd1 {[%emt 0:00:12]} Ne7 {[%emt 0:00:05]} 31. Qf2 {[%emt 0:00:20]} Nd5 {[%emt 0:00:07]} 32. Rc1 {[%emt 0:00:06]} Qb7 {[%emt 0:00:26]} 33. Bf3 {[%emt 0:00:05]} Bd3 {[%emt 0:00:06]} 34. Rfd1 {[%emt 0:00:05]} Bc4 {[%emt 0:00:03]} 35. Be4 {[%emt 0:00:06]} Qe7 {[%emt 0:00:09]} 36. Qf3 {[%emt 0:00:07]} Qf6 {[%emt 0:00:04]} 37. f5 {[%emt 0:00:14]} Ne7 {[%emt 0:00:07]} 38. fxe6 {[%emt 0:00:02]} Qxf3 {[%emt 0:00:01]} 39. Bxf3 {[%emt 0:00:01]} fxe6 {[%emt 0:00:03]} 40. Rc3 {[%emt 0:00:08]} Nd5 {[%emt 0:00:02]} 41. Bxd5 {[%emt 0:00:03]} Rxd5 {[%emt 0:00:01]} 42. b3 {[%emt 0:00:01]} Be2 {[%emt 0:00:03]} 43. Rd2 {[%emt 0:00:02]} Bg4 {[%emt 0:00:01]} 44. Rc8+ {[%emt 0:00:02]} Kh7 {[%emt 0:00:02]} 45. Kf2 {[%emt 0:00:02]} Bf5 {[%emt 0:00:01]} 46. Ke3 {[%emt 0:00:02]} Be4 {[%emt 0:00:01]} 47. Kxe4 {[%emt 0:00:02]} 1-0

[Event "GER-ch Rapid Women 2017"]
[Site "Erfurt"]
[Date "2017.07.29"]
[Round "3"]
[White "Kinzel, Tiffany"]
[Black "Zschischang, Marine"]
[Result "1-0"]
[ECO "A40"]
[WhiteElo "1755"]
[BlackElo "2057"]
[Annotator "NA"]
[PlyCount "78"]
[EventDate "2017.??.??"]
[EventType "swiss"]
[EventCountry "GER"]
[SourceTitle "playchess.com"]
[Source "ChessBase"]
[SourceQuality "1"]
[TimeControl "1200"]

1. d4 {[%emt 0:00:01]} e6 {[%emt 0:00:01]} 2. e3 {[%emt 0:00:02]} d5 {[%emt 0:00:09]} 3. Bd3 {[%emt 0:00:03]} c5 {[%emt 0:00:13]} 4. c3 {[%emt 0:00:03]} Nc6 {[%emt 0:00:09]} 5. f4 {[%emt 0:00:09]} Nf6 {[%emt 0:02:16]} 6. Nf3 {[%emt 0:00:24]} Ne4 {[%emt 0:00:12]} 7. O-O {[%emt 0:00:29]} f5 {[%emt 0:01:07]} 8. Ne5 {[%emt 0:00:27]} g6 {[%emt 0:00:51]} 9. Nd2 {[%emt 0:00:38]} Qb6 {[%emt 0:00:32]} 10. Kh1 {[%emt 0:00:22]} Nxe5 {[%emt 0:01:09]} 11. fxe5 {[%emt 0:00:09]} Bd7 {[%emt 0:00:36]} 12. a4 {[%emt 0:00:52]} h5 {[%emt 0:00:56]} 13. Rb1 {[%emt 0:04:06]} Be7 {[%emt 0:01:31]} 14. Be2 {[%emt 0:01:04]} Rc8 {[%emt 0:01:15]} 15. Nxe4 {[%emt 0:01:42]} dxe4 {[%emt 0:00:31]} 16. c4 {[%emt 0:01:15]} Qc7 {[%emt 0:02:27]} 17. b3 {[%emt 0:00:12]} Bg5 {[%emt 0:00:15]} 18. g3 {[%emt 0:01:49]} Rd8 {[%emt 0:00:59]} 19. Qc2 {[%emt 0:01:44]} Rh7 {[%emt 0:00:39]} 20. Rd1 {[%emt 0:00:11]} Bc8 {[%emt 0:00:20]} 21. Qc3 {[%emt 0:00:21]} Rhd7 {[%emt 0:00:28]} 22. Ba3 {[%emt 0:00:15]} b6 {[%emt 0:00:38]} 23. b4 {[%emt 0:00:30]} cxd4 {[%emt 0:00:34]} 24. exd4 {[%emt 0:00:02]} Bb7 {[%emt 0:00:02]} 25. c5 {[%emt 0:00:35]} e3+ {[%emt 0:00:10]} 26. Kg1 {[%emt 0:00:04]} a6 {[%emt 0:00:23]} 27. b5 {[%emt 0:00:13]} bxc5 {[%emt 0:00:22]} 28. dxc5 {[%emt 0:00:08]} Rd2 {[%emt 0:00:14]} 29. Re1 {[%emt 0:00:55]} R8d5 {[%emt 0:00:22]} 30. c6 {[%emt 0:00:06]} Ba8 {[%emt 0:00:10]} 31. b6 {[%emt 0:00:07]} Qxc6 {[%emt 0:00:13]} 32. Qxc6+ {[%emt 0:00:07]} Bxc6 {[%emt 0:00:01]} 33. b7 {[%emt 0:00:02]} Bxb7 {[%emt 0:00:01]} 34. Rxb7 {[%emt 0:00:01]} Rxe5 {[%emt 0:00:02]} 35. Bxa6 {[%emt 0:00:13]} Red5 {[%emt 0:00:05]} 36. Bb5+ {[%emt 0:00:03]} Kd8 {[%emt 0:00:05]} 37. Bb4 {[%emt 0:00:13]} Rd1 {[%emt 0:00:01]} 38. Rb8+ {[%emt 0:00:07]} Kc7 {[%emt 0:00:00]} 39. Ba5+ {[%emt 0:00:04]} Kxb8 1-0

[Event "GER-ch Rapid Women 2017"]
[Site "Erfurt"]
[Date "2017.07.29"]
[Round "3"]
[White "Ganser, Ganokorn"]
[Black "Daemering, Katrin"]
[Result "1-0"]
[ECO "A59"]
[WhiteElo "1698"]
[BlackElo "2033"]
[Annotator "NA"]
[PlyCount "126"]
[EventDate "2017.??.??"]
[EventType "swiss"]
[EventCountry "GER"]
[SourceTitle "playchess.com"]
[Source "ChessBase"]
[SourceQuality "1"]
[TimeControl "1200"]

1. d4 {[%emt 0:00:01]} Nf6 {[%emt 0:00:01]} 2. c4 {[%emt 0:00:02]} c5 {[%emt 0:00:02]} 3. d5 {[%emt 0:00:01]} b5 {[%emt 0:00:02]} 4. cxb5 {[%emt 0:00:02]} a6 {[%emt 0:00:01]} 5. bxa6 {[%emt 0:00:01]} g6 {[%emt 0:00:02]} 6. Nc3 {[%emt 0:00:05]} Bxa6 {[%emt 0:00:03]} 7. e4 {[%emt 0:00:14]} Bxf1 {[%emt 0:00:03]} 8. Kxf1 {[%emt 0:00:01]} d6 {[%emt 0:00:04]} 9. g3 {[%emt 0:00:02]} Bg7 {[%emt 0:00:08]} 10. Nf3 {[%emt 0:00:12]} O-O {[%emt 0:00:26]} 11. Kg2 {[%emt 0:00:01]} Na6 {[%emt 0:00:30]} 12. Nd2 {[%emt 0:01:05]} Qd7 {[%emt 0:01:22]} 13. Re1 {[%emt 0:00:19]} Ng4 {[%emt 0:00:28]} 14. a3 {[%emt 0:04:07]} Bd4 {[%emt 0:00:59]} 15. Rf1 {[%emt 0:00:30]} Bxf2 {[%emt 0:00:25]} 16. Nc4 {[%emt 0:00:08]} Bd4 {[%emt 0:00:15]} 17. Nb6 {[%emt 0:00:07]} Qb7 {[%emt 0:00:51]} 18. Nxa8 {[%emt 0:00:11]} Nf6 {[%emt 0:02:12]} 19. Qe2 {[%emt 0:02:48]} Rxa8 {[%emt 0:00:30]} 20. Nb5 {[%emt 0:00:53]} Be5 {[%emt 0:00:39]} 21. Rb1 {[%emt 0:00:06]} Rb8 {[%emt 0:00:09]} 22. a4 {[%emt 0:00:05]} Rc8 {[%emt 0:01:35]} 23. Bf4 {[%emt 0:00:13]} Bxf4 {[%emt 0:02:51]} 24. Rxf4 {[%emt 0:00:02]} Nd7 {[%emt 0:00:10]} 25. Rff1 {[%emt 0:01:21]} Ne5 {[%emt 0:00:02]} 26. Rfc1 {[%emt 0:00:10]} Nb4 {[%emt 0:00:09]} 27. b3 {[%emt 0:01:25]} f5 {[%emt 0:01:43]} 28. Rd1 {[%emt 0:01:27]} Rf8 {[%emt 0:00:05]} 29. exf5 {[%emt 0:00:15]} Rxf5 {[%emt 0:00:01]} 30. Qe4 {[%emt 0:00:18]} Nf7 {[%emt 0:01:28]} 31. Kg1 {[%emt 0:00:20]} Ng5 {[%emt 0:00:21]} 32. Qg2 {[%emt 0:00:29]} Nf3+ {[%emt 0:00:21]} 33. Kh1 {[%emt 0:00:16]} Nxd5 {[%emt 0:00:20]} 34. Rd3 {[%emt 0:00:04]} Nb4 {[%emt 0:00:32]} 35. Rxf3 {[%emt 0:00:02]} Qxf3 {[%emt 0:00:04]} 36. Qxf3 {[%emt 0:00:05]} Rxf3 {[%emt 0:00:01]} 37. Kg2 {[%emt 0:00:05]} Re3 {[%emt 0:00:08]} 38. Kf2 {[%emt 0:00:19]} Re5 {[%emt 0:00:07]} 39. a5 {[%emt 0:00:08]} Na6 {[%emt 0:00:03]} 40. Ra1 {[%emt 0:00:09]} Kf7 {[%emt 0:00:04]} 41. Ra4 {[%emt 0:00:30]} d5 {[%emt 0:00:01]} 42. Nc3 {[%emt 0:00:04]} d4 {[%emt 0:00:03]} 43. Nd1 {[%emt 0:00:03]} d3 {[%emt 0:00:10]} 44. Kf3 {[%emt 0:00:05]} d2 {[%emt 0:00:01]} 45. Nb2 {[%emt 0:00:03]} Re1 {[%emt 0:00:03]} 46. Rf4+ {[%emt 0:00:04]} Ke8 {[%emt 0:00:03]} 47. Re4 {[%emt 0:00:16]} d1=Q+ {[%emt 0:00:03]} 48. Nxd1 {[%emt 0:00:01]} Rxd1 {[%emt 0:00:02]} 49. Re2 {[%emt 0:00:03]} Ra1 {[%emt 0:00:01]} 50. Re4 {[%emt 0:00:08]} Rxa5 {[%emt 0:00:01]} 51. Ra4 {[%emt 0:00:02]} Rxa4 {[%emt 0:00:04]} 52. bxa4 {[%emt 0:00:01]} Kd7 {[%emt 0:00:01]} 53. Ke4 {[%emt 0:00:00]} Kd6 {[%emt 0:00:01]} 54. Kd3 {[%emt 0:00:01]} Kd5 {[%emt 0:00:01]} 55. Kc3 {[%emt 0:00:01]} c4 {[%emt 0:00:01]} 56. a5 {[%emt 0:00:02]} e5 {[%emt 0:00:00]} 57. h4 {[%emt 0:00:01]} e4 {[%emt 0:00:01]} 58. Kc2 {[%emt 0:00:01]} Kd4 {[%emt 0:00:01]} 59. g4 {[%emt 0:00:02]} e3 {[%emt 0:00:00]} 60. Kd1 {[%emt 0:00:01]} Kd3 {[%emt 0:00:01]} 61. Ke1 {[%emt 0:00:01]} c3 {[%emt 0:00:01]} 62. Kf1 {[%emt 0:00:01]} c2 {[%emt 0:00:01]} 63. Kg2 {[%emt 0:00:00]} c1=Q {[%emt 0:00:02]} 1-0

[Event "GER-ch Rapid Women 2017"]
[Site "Erfurt"]
[Date "2017.07.29"]
[Round "4"]
[White "Mader, Manuela"]
[Black "Osmanodja, Filiz"]
[Result "0-1"]
[ECO "B22"]
[WhiteElo "2203"]
[BlackElo "2273"]
[Annotator "NA"]
[PlyCount "92"]
[EventDate "2017.??.??"]
[EventType "swiss"]
[EventCountry "GER"]
[SourceTitle "playchess.com"]
[Source "ChessBase"]
[SourceQuality "1"]
[TimeControl "1200"]

1. e4 {[%emt 0:00:03]} c5 {[%emt 0:00:01]} 2. c3 {[%emt 0:00:01]} Qa5 {[%emt 0:00:02]} 3. Nf3 {[%emt 0:00:16]} Nc6 {[%emt 0:00:01]} 4. Be2 {[%emt 0:01:27]} d6 {[%emt 0:00:04]} 5. O-O {[%emt 0:00:04]} Nf6 {[%emt 0:00:24]} 6. d3 {[%emt 0:00:05]} e5 {[%emt 0:00:07]} 7. Na3 {[%emt 0:00:19]} Be7 {[%emt 0:01:46]} 8. Nc4 {[%emt 0:00:07]} Qc7 {[%emt 0:00:15]} 9. Ne3 {[%emt 0:00:55]} Be6 {[%emt 0:00:30]} 10. Qc2 {[%emt 0:00:40]} d5 {[%emt 0:01:09]} 11. exd5 {[%emt 0:02:23]} Nxd5 {[%emt 0:00:02]} 12. Rd1 {[%emt 0:01:10]} Nf4 {[%emt 0:01:27]} 13. Bf1 {[%emt 0:00:03]} O-O-O {[%emt 0:00:20]} 14. a3 {[%emt 0:00:49]} Na5 {[%emt 0:05:55]} 15. Nd2 {[%emt 0:01:13]} f5 {[%emt 0:00:09]} 16. b4 {[%emt 0:00:12]} Nc6 {[%emt 0:00:02]} 17. Nb3 {[%emt 0:00:34]} cxb4 {[%emt 0:00:50]} 18. axb4 {[%emt 0:00:10]} Nxb4 {[%emt 0:00:03]} 19. Qb1 {[%emt 0:02:51]} Nc6 {[%emt 0:02:04]} 20. d4 {[%emt 0:00:21]} e4 {[%emt 0:01:02]} 21. c4 {[%emt 0:00:20]} Bf6 {[%emt 0:00:21]} 22. d5 {[%emt 0:00:18]} Bxa1 {[%emt 0:00:04]} 23. Qxa1 {[%emt 0:00:10]} Bf7 {[%emt 0:00:45]} 24. dxc6 {[%emt 0:01:17]} Rxd1 {[%emt 0:00:02]} 25. Nxd1 {[%emt 0:00:02]} Nd3 26. cxb7+ {[%emt 0:01:04]} Kxb7 {[%emt 0:00:25]} 27. Be3 {[%emt 0:00:09]} Ka8 {[%emt 0:00:16]} 28. Qa5 {[%emt 0:01:27]} Qxa5 {[%emt 0:00:08]} 29. Nxa5 {[%emt 0:00:01]} Rc8 {[%emt 0:00:01]} 30. Bd4 {[%emt 0:00:13]} Bxc4 {[%emt 0:00:16]} 31. Ne3 {[%emt 0:00:02]} Be6 {[%emt 0:00:04]} 32. g3 {[%emt 0:00:21]} g5 {[%emt 0:00:01]} 33. Kg2 {[%emt 0:00:01]} f4 {[%emt 0:00:01]} 34. gxf4 {[%emt 0:00:01]} gxf4 {[%emt 0:00:01]} 35. Nd1 {[%emt 0:00:03]} Rg8+ {[%emt 0:00:05]} 36. Kh1 {[%emt 0:00:02]} Bg4 {[%emt 0:00:03]} 37. h3 {[%emt 0:00:15]} Bxd1 {[%emt 0:00:05]} 38. Nc4 {[%emt 0:00:04]} Ne1 {[%emt 0:00:06]} 39. Nd6 {[%emt 0:00:05]} Bf3+ {[%emt 0:00:08]} 40. Kh2 Nd3 {[%emt 0:00:17]} 41. Nf5 {[%emt 0:00:03]} Rd8 {[%emt 0:00:03]} 42. Bc3 {[%emt 0:00:02]} Rc8 {[%emt 0:00:01]} 43. Bd4 {[%emt 0:00:01]} Rc1 {[%emt 0:00:04]} 44. Bg2 {[%emt 0:00:04]} Ne1 {[%emt 0:00:04]} 45. Nh4 {[%emt 0:00:08]} Bxg2 {[%emt 0:00:03]} 46. Nxg2 {[%emt 0:00:01]} Nf3# {[%emt 0:00:01]} 0-1

[Event "GER-ch Rapid Women 2017"]
[Site "Erfurt"]
[Date "2017.07.29"]
[Round "4"]
[White "Rogozenco, Teodora"]
[Black "Kinzel, Tiffany"]
[Result "1-0"]
[ECO "A84"]
[WhiteElo "2169"]
[BlackElo "1755"]
[Annotator "NA"]
[PlyCount "61"]
[EventDate "2017.??.??"]
[EventType "swiss"]
[EventCountry "GER"]
[SourceTitle "playchess.com"]
[Source "ChessBase"]
[SourceQuality "1"]
[TimeControl "1200"]

1. d4 {[%emt 0:00:01]} f5 {[%emt 0:00:05]} 2. c4 {[%emt 0:00:01]} e6 {[%emt 0:00:08]} 3. Nc3 {[%emt 0:00:04]} Nf6 {[%emt 0:00:14]} 4. Qc2 {[%emt 0:00:11]} d5 {[%emt 0:00:42]} 5. Bf4 {[%emt 0:00:10]} Bd6 {[%emt 0:01:07]} 6. Be5 {[%emt 0:00:28]} O-O {[%emt 0:00:23]} 7. O-O-O {[%emt 0:02:07]} c6 {[%emt 0:02:44]} 8. e3 {[%emt 0:00:45]} b6 {[%emt 0:02:24]} 9. h3 {[%emt 0:00:18]} Ba6 {[%emt 0:00:15]} 10. g4 {[%emt 0:00:30]} Ne4 {[%emt 0:03:53]} 11. gxf5 {[%emt 0:02:46]} exf5 {[%emt 0:00:31]} 12. Bd3 {[%emt 0:00:16]} Bxc4 {[%emt 0:02:32]} 13. Bxc4 {[%emt 0:00:13]} Nxc3 {[%emt 0:00:50]} 14. Qxc3 {[%emt 0:00:21]} dxc4 {[%emt 0:00:02]} 15. Qxc4+ {[%emt 0:00:01]} Rf7 {[%emt 0:00:17]} 16. Nf3 {[%emt 0:00:03]} Bf8 {[%emt 0:00:19]} 17. Rhg1 {[%emt 0:02:14]} b5 {[%emt 0:00:02]} 18. Qb3 {[%emt 0:00:13]} a5 {[%emt 0:00:14]} 19. Ng5 {[%emt 0:00:13]} Raa7 {[%emt 0:00:44]} 20. Nxf7 {[%emt 0:01:13]} Rxf7 {[%emt 0:00:02]} 21. Kb1 {[%emt 0:00:44]} a4 {[%emt 0:00:02]} 22. Qe6 {[%emt 0:00:04]} b4 {[%emt 0:00:29]} 23. d5 {[%emt 0:00:09]} cxd5 {[%emt 0:00:04]} 24. Rxd5 {[%emt 0:00:03]} Qh4 {[%emt 0:00:40]} 25. Bxb8 {[%emt 0:00:16]} Qxf2 {[%emt 0:00:02]} 26. Rdd1 {[%emt 0:00:24]} a3 {[%emt 0:00:05]} 27. Be5 {[%emt 0:00:12]} Qf3 {[%emt 0:00:13]} 28. Bxg7 {[%emt 0:00:22]} Qe4+ {[%emt 0:00:24]} 29. Qxe4 {[%emt 0:00:04]} fxe4 {[%emt 0:00:02]} 30. Be5+ {[%emt 0:00:19]} Bg7 {[%emt 0:00:05]} 31. Rd8+ {[%emt 0:00:03]} 1-0

[Event "GER-ch Rapid Women 2017"]
[Site "Erfurt"]
[Date "2017.07.29"]
[Round "4"]
[White "Zschischang, Marine"]
[Black "Michna, Marta"]
[Result "0-1"]
[ECO "C00"]
[WhiteElo "2057"]
[BlackElo "2377"]
[Annotator "NA"]
[PlyCount "115"]
[EventDate "2017.??.??"]
[EventType "swiss"]
[EventCountry "GER"]
[SourceTitle "playchess.com"]
[Source "ChessBase"]
[SourceQuality "1"]
[TimeControl "1200"]

1. e4 {[%emt 0:00:01]} e6 {[%emt 0:00:01]} 2. c4 {[%emt 0:00:02]} b6 {[%emt 0:00:10]} 3. Nc3 Bb7 4. d4 {[%emt 0:02:02]} Bb4 {[%emt 0:00:18]} 5. f3 {[%emt 0:00:51]} f5 {[%emt 0:00:54]} 6. exf5 {[%emt 0:00:40]} Nh6 {[%emt 0:00:50]} 7. fxe6 {[%emt 0:00:37]} dxe6 {[%emt 0:02:55]} 8. Be3 {[%emt 0:01:54]} Nf5 {[%emt 0:00:41]} 9. Bf2 {[%emt 0:00:05]} O-O {[%emt 0:01:09]} 10. Nge2 {[%emt 0:01:36]} Nc6 {[%emt 0:01:22]} 11. a3 {[%emt 0:02:19]} Be7 {[%emt 0:00:07]} 12. d5 {[%emt 0:02:49]} exd5 {[%emt 0:01:16]} 13. Qxd5+ {[%emt 0:00:42]} Kh8 {[%emt 0:00:11]} 14. Qxd8 {[%emt 0:00:59]} Raxd8 {[%emt 0:00:08]} 15. Nd5 {[%emt 0:00:33]} Ne5 {[%emt 0:02:21]} 16. Nec3 {[%emt 0:00:17]} Bd6 {[%emt 0:03:47]} 17. O-O-O {[%emt 0:00:19]} c6 {[%emt 0:00:05]} 18. Ne3 {[%emt 0:00:37]} Nh6 {[%emt 0:00:40]} 19. Ne4 {[%emt 0:00:09]} Bc7 {[%emt 0:00:04]} 20. Be2 {[%emt 0:00:19]} Ba6 {[%emt 0:00:06]} 21. b3 {[%emt 0:00:06]} Ng6 {[%emt 0:00:04]} 22. g3 {[%emt 0:01:16]} Bc8 {[%emt 0:00:08]} 23. Rxd8 {[%emt 0:00:03]} Rxd8 {[%emt 0:00:12]} 24. Rd1 {[%emt 0:00:01]} Re8 {[%emt 0:00:01]} 25. Ng2 {[%emt 0:00:12]} Bf5 {[%emt 0:00:08]} 26. Bd3 {[%emt 0:00:13]} Ne5 {[%emt 0:00:03]} 27. g4 {[%emt 0:00:08]} Nxd3+ {[%emt 0:00:06]} 28. Rxd3 {[%emt 0:00:03]} Bxe4 {[%emt 0:00:02]} 29. fxe4 {[%emt 0:00:02]} Nxg4 {[%emt 0:00:13]} 30. Bg3 {[%emt 0:00:01]} Bxg3 {[%emt 0:00:07]} 31. hxg3 {[%emt 0:00:01]} g6 {[%emt 0:00:43]} 32. Rd7 {[%emt 0:00:03]} a6 {[%emt 0:00:15]} 33. Rd6 {[%emt 0:00:06]} Ne5 {[%emt 0:00:10]} 34. Nf4 b5 35. c5 {[%emt 0:00:09]} Kg8 {[%emt 0:00:01]} 36. Kd2 {[%emt 0:00:06]} Kg7 {[%emt 0:00:01]} 37. Ne6+ Kg8 38. Nd4 {[%emt 0:00:05]} Rc8 {[%emt 0:00:04]} 39. Re6 {[%emt 0:00:04]} Nd7 {[%emt 0:00:01]} 40. Rxc6 {[%emt 0:00:02]} Rxc6 {[%emt 0:00:02]} 41. Nxc6 {[%emt 0:00:02]} Nxc5 {[%emt 0:00:01]} 42. e5 {[%emt 0:00:10]} Nxb3+ {[%emt 0:00:00]} 43. Kc3 Nc5 44. Kd4 Ne6+ 45. Kd5 Kf7 46. Nd4 {[%emt 0:00:07]} Nxd4 {[%emt 0:00:03]} 47. Kxd4 Ke6 48. Ke4 {[%emt 0:00:01]} a5 {[%emt 0:00:01]} 49. Kd4 {[%emt 0:00:01]} b4 {[%emt 0:00:00]} 50. axb4 axb4 51. g4 {[%emt 0:00:02]} b3 {[%emt 0:00:01]} 52. Kc3 {[%emt 0:00:01]} Kxe5 {[%emt 0:00:01]} 53. Kxb3 {[%emt 0:00:01]} Kf4 {[%emt 0:00:01]} 54. Kc3 {[%emt 0:00:00]} Kxg4 55. Kd4 Kf3 {[%emt 0:00:01]} 56. Ke5 {[%emt 0:00:01]} g5 {[%emt 0:00:01]} 57. Kf5 {[%emt 0:00:01]} g4 {[%emt 0:00:01]} 58. Kf6 {[%emt 0:00:01]} 0-1